fUST/lending_fUST_20241219
["ID","MTS","AMOUNT","RATE_DAILY","PERIOD"]
[345961968,1734568240980,-500.0,0.00024657,6]
[345961969,1734568240989,-500.0,0.00024657,6]
[345961970,1734568240999,-823.71,0.00024657,6]
[345961971,1734568241008,-500.0,0.00024657,6]
[345961972,1734568241018,-1486.55,0.00024657,2]
[345961973,1734568241027,-1126.53,0.00024657,2]
[345961974,1734568241037,-500.0,0.00024657,6]
[345961975,1734568241046,-365.77627531,0.00024657,6]
[345961976,1734568241056,-500.0,0.00024657,6]
[345961977,1734568241066,-519.03,0.00024657,6]
[345961978,1734568241075,-754.42,0.00024657,6]
[345961979,1734568241085,-203.74615534,0.00024657,6]
[345961980,1734568241094,-500.0,0.00024657,6]
[345961981,1734568241103,-500.0,0.00024657,6]
[345961982,1734568241112,-500.0,0.00024657,6]
[345961983,1734568241122,-751.63,0.00024657,6]
[345961984,1734568241131,-2108.15,0.00024657,2]
[345961985,1734568241141,-500.0,0.00024657,6]
[345961986,1734568241154,-500.0,0.00024657,6]
[345961987,1734568241163,-500.0,0.00024657,6]
[345961988,1734568241173,-500.0,0.00024657,6]
[345961989,1734568241182,-777.3,0.00024657,6]
[345961990,1734568241191,-500.0,0.00024657,6]
[345961991,1734568241200,-3161.1,0.00024657,6]
[345961992,1734568241211,-500.0,0.00024657,6]
[345961993,1734568241221,-582.16639431,0.00024657,6]
[345961994,1734568241233,-500.0,0.00024657,6]
[345961995,1734568241242,-500.0,0.00024657,6]
[345961996,1734568241251,-649.77,0.00024657,6]
[345961997,1734568241260,-8329.26,0.00024657,6]
[345961998,1734568241271,-500.0,0.00024657,6]
[345961999,1734568241280,-500.0,0.00024657,6]
[345962000,1734568241289,-500.0,0.00024657,6]
[345962001,1734568241299,-500.0,0.00024657,6]
[345962002,1734568241309,-500.0,0.00024657,6]
[345962003,1734568241318,-500.0,0.00024657,6]
[345962004,1734568241328,-3622.39,0.00024657,6]
[345962005,1734568241338,-7792.85,0.00024657,6]
[345962006,1734568241347,-958.63,0.00024657,6]
[345962007,1734568241357,-2590.07,0.00024657,6]
[345962008,1734568241367,-500.0,0.00024657,6]
[345962009,1734568241377,-500.0,0.00024657,6]
[345962010,1734568241386,-500.0,0.00024657,6]
[345962011,1734568241404,-408.16473505,0.00024657,6]
[345962040,1734568243551,-1257.92706627,0.00024657,6]
[345962041,1734568243564,-3347.06819868,0.00024657,6]
[345962042,1734568243574,-1252.85,0.00024657,6]
[345962043,1734568243583,-592.33180132,0.00024657,6]
[345962046,1734568243661,-6532.24819868,0.00024657,6]
[345962047,1734568243672,-1416.13,0.00024657,6]
[345962048,1734568243681,-1926.41,0.00024657,6]
[345962049,1734568243692,-512.83,0.00024657,6]
[345962050,1734568243701,-500.0,0.00024657,6]
[345962051,1734568243710,-3482.24,0.00024657,2]
[345962052,1734568243719,-500.0,0.00024657,6]
[345962053,1734568243729,-1980.73,0.00024657,6]
[345962054,1734568243739,-500.0,0.00024657,6]
[345962055,1734568243748,-500.0,0.00024657,6]
[345962056,1734568243757,-12219.74,0.00024657,6]
[345962057,1734568243767,-500.0,0.00024657,6]
[345962058,1734568243776,-633.54,0.00024657,6]
[345962059,1734568243786,-636.81,0.00024657,6]
[345962060,1734568243795,-500.0,0.00024657,6]
[345962061,1734568243966,-500.0,0.00024657,6]
[345962062,1734568243976,-500.0,0.00024657,6]
[345962063,1734568243986,-500.0,0.00024657,6]
[345962064,1734568243995,-500.0,0.00024657,6]
[345962065,1734568244006,-3998.03,0.00024657,6]
[345962066,1734568244015,-500.0,0.00024657,6]
[345962067,1734568244025,-1244.18,0.00024657,6]
[345962068,1734568244035,-8623.73,0.00024657,6]
[345962069,1734568244044,-4764.07,0.00024657,6]
[345962070,1734568244054,-945.98,0.00024657,6]
[345962071,1734568244064,-500.0,0.00024657,2]
[345962072,1734568244073,-500.0,0.00024657,6]
[345962073,1734568244083,-1294.79,0.00024657,6]
[345962074,1734568244093,-2715.45,0.00024657,6]
[345962075,1734568244104,-14854.45,0.00024657,6]
[345962076,1734568244114,-500.0,0.00024657,6]
[345962077,1734568244125,-500.0,0.00024657,6]
[345962078,1734568244134,-500.0,0.00024657,6]
[345962079,1734568244144,-500.0,0.00024657,6]
[345962080,1734568244155,-988.57,0.00024657,6]
[345962081,1734568244165,-3975.96,0.00024657,6]
[345962082,1734568244175,-500.0,0.00024657,6]
[345962083,1734568244185,-500.0,0.00024657,6]
[345962084,1734568244195,-998.59,0.00024657,6]
[345962085,1734568244204,-500.0,0.00024657,6]
[345962086,1734568244214,-1191.74,0.00024657,6]
[345962087,1734568244224,-500.0,0.00024657,6]
[345962088,1734568244238,-502.95,0.00024657,6]
[345962089,1734568244248,-500.0,0.00024657,6]
[345962090,1734568244259,-34593.12,0.00024657,6]
[345962091,1734568244270,-500.0,0.00024657,6]
[345962092,1734568244280,-500.0,0.00024657,6]
[345962093,1734568244290,-500.75019571,0.00024673,2]
[345962094,1734568244299,-500.0,0.00024673,2]
[345962095,1734568244309,-438.76919901,0.00024673,2]
[345962096,1734568244319,-3064.6737149,0.00024787,2]
[345962097,1734568244328,-24821.9389917,0.000249,3]
[345962112,1734568246438,-622.7,0.00024657,6]
[345962114,1734568246448,-500.0,0.00024657,6]
[345962116,1734568246457,-1320.2500005,0.000249,3]
[345962126,1734568409021,191.68125,0.00013973,2]
[345962133,1734569235138,-3860.55216175,0.0002,2]
[345962134,1734569275307,182.097187,0.00013973,2]
[345962161,1734569432556,-1642.71737495,0.0002,2]
[345962163,1734569432566,-182.097187,0.00020447,2]
[345962164,1734569432578,-5.23543805,0.00022943,2]
[345962165,1734569432590,-590.05756195,0.00022943,2]
[345962166,1734569432599,-285.371863,0.00023053,2]
[345962167,1734569432608,-300.0,0.00023546,2]
[345962168,1734569432618,-11510.7966526,0.00023547,2]
[345962169,1734569432628,-192.152816,0.00023562,2]
[345962170,1734569432639,-258.1341107,0.00024137,2]
[345962171,1734569432650,-153.2262909,0.00024137,2]
[345962172,1734569432659,-153.0,0.00024137,2]
[345962173,1734569432668,-153.0,0.00024137,2]
[345962174,1734569432678,-153.2262909,0.00024137,2]
[345962175,1734569432687,-153.0065271,0.00024137,2]
[345962176,1734569432697,-153.0,0.00024137,2]
[345962177,1734569432706,-2467.58918935,0.00024159,2]
[345962178,1734569432728,-428.95024019,0.00024159,2]
[345962234,1734569438527,-5000.0,0.00024159,2]
[345962235,1734569438539,-931.85085466,0.00024159,2]
[345962236,1734569438548,-330.893,0.0002434,2]
[345962237,1734569438557,-300.0,0.000244,11]
[345962238,1734569438567,-263.87380073,0.000244,2]
[345962239,1734569438641,-324.22683165,0.000244,2]
[345962429,1734569440526,-285.371863,0.00023623,2]
[345962431,1734569440535,-709.95265662,0.000244,2]
[345962432,1734569440544,-745.08,0.000245,2]
[345962434,1734569440554,-182.1321578,0.00024555,2]
[345962436,1734569440563,-1298.05328896,0.00024581,2]
[345962437,1734569440572,-3598.55849492,0.000246,7]
[345962439,1734569440584,-300.0,0.000246,6]
[345962441,1734569440594,-300.0,0.000246,7]
[345962443,1734569440603,-8828.3902843,0.00024645,2]
[345962445,1734569440613,-1604.32,0.00024654,2]
[345962447,1734569440623,-500.0,0.00024655,2]
[345962448,1734569440632,-500.0,0.00024655,2]
[345962450,1734569440644,-500.0,0.00024655,2]
[345962452,1734569440655,-500.0,0.00024655,2]
[345962454,1734569440665,-500.0,0.00024655,2]
[345962455,1734569440674,-500.0,0.00024655,2]
[345962457,1734569440683,-500.0,0.00024655,2]
[345962459,1734569440692,-500.0,0.00024655,2]
[345962460,1734569440701,-500.0,0.00024655,2]
[345962462,1734569440711,-500.0,0.00024655,2]
[345962464,1734569440720,-500.0,0.00024655,2]
[345962466,1734569440730,-500.0,0.00024655,2]
[345962467,1734569440739,-250.0,0.00024655,2]
[345962469,1734569440748,-500.0,0.00024655,2]
[345962471,1734569440758,-500.0,0.00024655,2]
[345962473,1734569440768,-500.0,0.00024655,2]
[345962475,1734569440777,-500.0,0.00024655,2]
[345962477,1734569440787,-500.0,0.00024655,2]
[345962478,1734569440796,-500.0,0.00024655,2]
[345962480,1734569440805,-500.0,0.00024655,2]
[345962482,1734569440814,-500.0,0.00024655,2]
[345962483,1734569440823,-500.0,0.00024655,2]
[345962485,1734569440833,-500.0,0.00024655,2]
[345962487,1734569440842,-500.0,0.00024655,2]
[345962489,1734569440851,-500.0,0.00024655,2]
[345962491,1734569440860,-331.18720945,0.00024655,2]
[345962493,1734569440869,-500.0,0.00024655,2]
[345962494,1734569440879,-500.0,0.00024655,2]
[345962496,1734569440888,-500.0,0.00024655,2]
[345962498,1734569440897,-500.0,0.00024655,2]
[345962499,1734569440917,-500.0,0.00024655,2]
[345962500,1734569440928,-500.0,0.00024655,2]
[345962501,1734569440938,-500.0,0.00024655,2]
[345962502,1734569440948,-500.0,0.00024655,2]
[345962503,1734569440958,-500.0,0.00024655,2]
[345962504,1734569440967,-500.0,0.00024655,2]
[345962505,1734569440977,-500.0,0.00024655,2]
[345962506,1734569440987,-500.0,0.00024655,2]
[345962507,1734569440998,-500.0,0.00024655,2]
[345962508,1734569441008,-500.0,0.00024655,2]
[345962509,1734569441017,-500.0,0.00024655,2]
[345962510,1734569441027,-500.0,0.00024655,2]
[345962511,1734569441037,-500.0,0.00024655,2]
[345962512,1734569441046,-500.0,0.00024655,2]
[345962513,1734569441057,-500.0,0.00024655,2]
[345962514,1734569441066,-500.0,0.00024655,2]
[345962515,1734569441076,-500.0,0.00024655,2]
[345962516,1734569441086,-500.0,0.00024655,2]
[345962517,1734569441095,-500.0,0.00024655,2]
[345962518,1734569441105,-500.0,0.00024655,2]
[345962519,1734569441115,-500.0,0.00024655,2]
[345962520,1734569441124,-500.0,0.00024655,2]
[345962521,1734569441134,-500.0,0.00024655,2]
[345962522,1734569441146,-500.0,0.00024655,2]
[345962523,1734569441155,-650.0,0.00024655,2]
[345962524,1734569441165,-500.0,0.00024655,2]
[345962525,1734569441175,-500.0,0.00024655,2]
[345962526,1734569441185,-500.0,0.00024655,2]
[345962527,1734569441195,-500.0,0.00024655,2]
[345962528,1734569441205,-500.0,0.00024655,2]
[345962529,1734569441214,-500.0,0.00024655,2]
[345962530,1734569441226,-500.0,0.00024655,2]
[345962532,1734569441236,-500.0,0.00024655,2]
[345962533,1734569441245,-500.0,0.00024655,2]
[345962534,1734569441255,-500.0,0.00024655,2]
[345962536,1734569441265,-500.0,0.00024655,2]
[345962538,1734569441274,-500.0,0.00024655,2]
[345962540,1734569441284,-500.0,0.00024655,2]
[345962542,1734569441293,-317.80018408,0.00024655,2]
[345962543,1734569441303,-500.0,0.00024655,2]
[345962545,1734569441313,-500.0,0.00024655,2]
[345962547,1734569441322,-500.0,0.00024655,2]
[345962549,1734569441332,-500.0,0.00024655,2]
[345962551,1734569441342,-500.0,0.00024655,2]
[345962553,1734569441351,-500.0,0.00024655,2]
[345962555,1734569441362,-500.0,0.00024655,2]
[345962557,1734569441371,-500.0,0.00024655,2]
[345962559,1734569441381,-500.0,0.00024655,2]
[345962560,1734569441392,-500.0,0.00024655,2]
[345962562,1734569441403,-500.0,0.00024655,2]
[345962564,1734569441413,-500.0,0.00024655,2]
[345962566,1734569441423,-500.0,0.00024655,2]
[345962568,1734569441432,-500.0,0.00024655,2]
[345962570,1734569441442,-506.23094066,0.00024655,2]
[345962572,1734569441451,-500.0,0.00024655,2]
[345962573,1734569441461,-500.0,0.00024655,2]
[345962575,1734569441471,-500.0,0.00024655,2]
[345962577,1734569441481,-500.0,0.00024655,2]
[345962579,1734569441490,-506.23094066,0.00024655,2]
[345962581,1734569441499,-500.0,0.00024655,2]
[345962583,1734569441509,-500.0,0.00024655,2]
[345962585,1734569441518,-506.23094066,0.00024655,2]
[345962586,1734569441527,-500.0,0.00024655,2]
[345962588,1734569441536,-500.0,0.00024655,2]
[345962590,1734569441546,-506.23094066,0.00024655,2]
[345962592,1734569441555,-500.0,0.00024655,2]
[345962594,1734569441565,-500.0,0.00024655,2]
[345962596,1734569441574,-506.23094066,0.00024655,2]
[345962597,1734569441585,-550.0,0.00024655,2]
[345962599,1734569441595,-506.23094066,0.00024655,2]
[345962601,1734569441604,-500.0,0.00024655,2]
[345962603,1734569441614,-500.0,0.00024655,2]
[345962605,1734569441623,-506.23094066,0.00024655,2]
[345962607,1734569441632,-500.0,0.00024655,2]
[345962609,1734569441645,-506.23094066,0.00024655,2]
[345962610,1734569441655,-500.0,0.00024655,2]
[345962612,1734569441665,-500.0,0.00024655,2]
[345962614,1734569441675,-506.23094066,0.00024655,2]
[345962616,1734569441685,-648.71057925,0.00024655,2]
[345962618,1734569441694,-506.23094066,0.00024655,2]
[345962620,1734569441703,-506.23094066,0.00024655,2]
[345962622,1734569441712,-500.0,0.00024655,2]
[345962623,1734569441721,-506.23094066,0.00024655,2]
[345962625,1734569441731,-500.0,0.00024655,2]
[345962627,1734569441740,-506.23094066,0.00024655,2]
[345962629,1734569441749,-506.23094066,0.00024655,2]
[345962631,1734569441759,-500.0,0.00024655,2]
[345962633,1734569441768,-506.23094066,0.00024655,2]
[345962634,1734569441777,-506.23094066,0.00024655,2]
[345962636,1734569441786,-506.23094066,0.00024655,2]
[345962638,1734569441796,-506.23094066,0.00024655,2]
[345962640,1734569441805,-506.23094066,0.00024655,2]
[345962642,1734569441815,-506.23094066,0.00024655,2]
[345962644,1734569441824,-506.23094066,0.00024655,2]
[345962645,1734569441833,-506.23094066,0.00024655,2]
[345962647,1734569441843,-506.23094066,0.00024655,2]
[345962649,1734569441851,-506.23094066,0.00024655,2]
[345962651,1734569441861,-506.23094066,0.00024655,2]
[345962653,1734569441870,-506.23094066,0.00024655,2]
[345962654,1734569441879,-506.23094066,0.00024655,2]
[345962656,1734569441892,-506.23094066,0.00024655,2]
[345962658,1734569441902,-506.23094066,0.00024655,2]
[345962660,1734569441911,-506.23094066,0.00024655,2]
[345962662,1734569441921,-506.23094066,0.00024655,2]
[345962664,1734569441931,-506.23094066,0.00024655,2]
[345962666,1734569441941,-506.23094066,0.00024655,2]
[345962668,1734569441950,-506.23094066,0.00024655,2]
[345962669,1734569441959,-506.23094066,0.00024655,2]
[345962671,1734569441970,-506.23094066,0.00024655,2]
[345962673,1734569441979,-506.23094066,0.00024655,2]
[345962675,1734569441988,-506.23094066,0.00024655,2]
[345962677,1734569441998,-506.23094066,0.00024655,2]
[345962679,1734569442008,-506.23094066,0.00024655,2]
[345962681,1734569442017,-506.23094066,0.00024655,2]
[345962682,1734569442026,-500.0,0.00024655,2]
[345962684,1734569442035,-500.0,0.00024655,2]
[345962686,1734569442044,-500.0,0.00024655,2]
[345962688,1734569442054,-500.0,0.00024655,2]
[345962690,1734569442063,-500.0,0.00024655,2]
[345962691,1734569442073,-500.0,0.00024655,2]
[345962693,1734569442083,-500.0,0.00024655,2]
[345962695,1734569442092,-500.0,0.00024655,2]
[345962697,1734569442102,-500.0,0.00024655,2]
[345962699,1734569442112,-422.90200571,0.00024655,2]
[345962701,1734569442121,-500.0,0.00024655,2]
[345962703,1734569442131,-500.0,0.00024655,2]
[345962704,1734569442144,-47360.25963385,0.00024656,2]
[345962706,1734569442156,-178.72498526,0.00024656,2]
[345962708,1734569442166,-165.58383062,0.00024656,2]
[345962710,1734569442177,-500.0,0.00024657,6]
[345962712,1734569442186,-500.0,0.00024657,6]
[345962714,1734569442196,-500.0,0.00024657,6]
[345962715,1734569442206,-1079.59,0.00024657,2]
[345962717,1734569442217,-319.14,0.00024657,6]
[345962719,1734569442228,-500.0,0.00024657,6]
[345962721,1734569442238,-500.0,0.00024657,6]
[345962723,1734569442248,-500.0,0.00024657,6]
[345962725,1734569442258,-500.0,0.00024657,6]
[345962727,1734569442267,-1154.31,0.00024657,6]
[345962729,1734569442277,-500.0,0.00024657,6]
[345962731,1734569442287,-500.0,0.00024657,6]
[345962733,1734569442297,-500.0,0.00024657,6]
[345962735,1734569442307,-500.0,0.00024657,6]
[345962737,1734569442316,-500.0,0.00024657,6]
[345962739,1734569442326,-500.0,0.00024657,6]
[345962741,1734569442336,-500.0,0.00024657,6]
[345962743,1734569442345,-812.42,0.00024657,6]
[345962745,1734569442355,-675.47,0.00024657,6]
[345962747,1734569442365,-861.13,0.00024657,6]
[345962749,1734569442375,-500.0,0.00024657,6]
[345962751,1734569442385,-500.0,0.00024657,6]
[345962753,1734569442403,-500.0,0.00024657,6]
[345962755,1734569442413,-879.21,0.00024657,6]
[345962757,1734569442422,-1241.35,0.00024657,2]
[345962759,1734569442432,-777.01,0.00024657,6]
[345962761,1734569442446,-612.41,0.00024657,6]
[345962762,1734569442455,-533.04908188,0.00024657,6]
[345962763,1734569442465,-500.0,0.00024657,6]
[345962764,1734569442477,-500.0,0.00024657,6]
[345962765,1734569442487,-500.0,0.00024657,6]
[345962766,1734569442497,-789.39,0.00024657,6]
[345962767,1734569442507,-1424.62,0.00024657,2]
[345962768,1734569442518,-549.57596217,0.00024657,6]
[345962769,1734569442528,-500.0,0.00024657,6]
[345962770,1734569442539,-722.99,0.00024657,6]
[345962771,1734569442549,-395.90599265,0.00024657,6]
[345962772,1734569442559,-720.31,0.00024657,6]
[345962773,1734569442569,-2020.32,0.00024657,2]
[345962774,1734569442583,-500.0,0.00024657,6]
[345962775,1734569442593,-744.92,0.00024657,6]
[345962776,1734569442603,-500.0,0.00024657,6]
[345962777,1734569442613,-500.0,0.00024657,6]
[345962778,1734569442624,-500.0,0.00024657,6]
[345962779,1734569442634,-3029.39,0.00024657,6]
[345962780,1734569442652,-500.0,0.00024657,6]
[345962781,1734569442662,-500.0,0.00024657,6]
[345962782,1734569442673,-7982.21,0.00024657,6]
[345962783,1734569442683,-500.0,0.00024657,6]
[345962784,1734569442692,-500.0,0.00024657,6]
[345962785,1734569442702,-500.0,0.00024657,6]
[345962786,1734569442712,-500.0,0.00024657,6]
[345962787,1734569442721,-3471.45,0.00024657,6]
[345962788,1734569442731,-500.0,0.00024657,6]
[345962790,1734569442740,-4804.28,0.00024657,6]
[345962791,1734569442749,-918.69,0.00024657,6]
[345962793,1734569442759,-2482.15,0.00024657,6]
[345962795,1734569442769,-500.0,0.00024657,6]
[345962797,1734569442778,-7468.15,0.00024657,6]
[345962799,1734569442787,-500.0,0.00024657,6]
[345962801,1734569442797,-500.0,0.00024657,6]
[345962803,1734569442807,-3772.56,0.00024657,6]
[345962805,1734569442817,-1200.64,0.00024657,6]
[345962807,1734569442826,-500.0,0.00024657,6]
[345962809,1734569442835,-1357.13,0.00024657,6]
[345962811,1734569442845,-500.0,0.00024657,6]
[345962813,1734569442854,-500.0,0.00024657,6]
[345962815,1734569442864,-6827.72,0.00024657,6]
[345962817,1734569442873,-500.0,0.00024657,6]
[345962819,1734569442884,-3337.14,0.00024657,2]
[345962821,1734569442907,-500.0,0.00024657,6]
[345962823,1734569442916,-500.0,0.00024657,6]
[345962825,1734569442926,-1898.2,0.00024657,6]
[345962827,1734569442936,-500.0,0.00024657,6]
[345962831,1734569442946,-500.0,0.00024657,6]
[345962833,1734569442956,-500.0,0.00024657,6]
[345962835,1734569442965,-607.14,0.00024657,6]
[345962837,1734569442974,-610.27,0.00024657,6]
[345962838,1734569442984,-11710.59,0.00024657,6]
[345962841,1734569442995,-321.54415986,0.00024657,6]
[345962843,1734569443006,-500.0,0.00024657,6]
[345962845,1734569443017,-500.0,0.00024657,6]
[345962847,1734569443026,-500.0,0.00024657,6]
[345962849,1734569443036,-500.0,0.00024657,6]
[345962851,1734569443045,-8264.41,0.00024657,6]
[345962853,1734569443054,-500.0,0.00024657,6]
[345962855,1734569443064,-500.0,0.00024657,6]
[345962857,1734569443074,-500.0,0.00024657,6]
[345962859,1734569443083,-500.0,0.00024657,6]
[345962861,1734569443093,-4565.57,0.00024657,6]
[345962863,1734569443103,-500.0,0.00024657,6]
[345962865,1734569443112,-500.0,0.00024657,6]
[345962869,1734569443122,-3831.44,0.00024657,6]
[345962872,1734569443132,-1240.84,0.00024657,6]
[345962875,1734569443146,-1192.34,0.00024657,6]
[345962879,1734569443158,-500.0,0.00024657,2]
[345962881,1734569443168,-906.56,0.00024657,6]
[345962882,1734569443177,-2602.3,0.00024657,6]
[345962884,1734569443187,-500.0,0.00024657,6]
[345962887,1734569443197,-500.0,0.00024657,6]
[345962889,1734569443206,-500.0,0.00024657,6]
[345962891,1734569443217,-500.0,0.00024657,6]
[345962892,1734569443226,-14235.51,0.00024657,6]
[345962895,1734569443236,-947.38,0.00024657,6]
[345962897,1734569443246,-3810.3,0.00024657,6]
[345962899,1734569443256,-956.98,0.00024657,6]
[345962901,1734569443266,-500.0,0.00024657,6]
[345962903,1734569443276,-500.0,0.00024657,6]
[345962905,1734569443285,-338.2113749,0.00024657,6]
[345962907,1734569443295,-500.0,0.00024657,6]
[345962909,1734569443305,-500.0,0.00024657,6]
[345962911,1734569443314,-500.0,0.00024657,6]
[345962913,1734569443323,-1142.08,0.00024657,6]
[345962915,1734569443333,-33151.74,0.00024657,6]
[345962917,1734569443343,-500.0,0.00024657,6]
[345962919,1734569443353,-1701.25,0.00024657,6]
[345962921,1734569443363,-596.75,0.00024657,6]
[345962923,1734569443372,-500.0,0.00024657,6]
[345962925,1734569443382,-500.0,0.00024657,6]
[345962927,1734569443396,-182.13215778,0.00024693,2]
[345962929,1734569443406,-1298.05328896,0.00024763,2]
[345962931,1734569443415,-32328.3935564,0.00024831,3]
[345962933,1734569443425,-182.13215778,0.00024831,2]
[345962935,1734569443435,-47285.11900718,0.00024931,2]
[345962937,1734569443444,-3374.64378611,0.00024931,2]
[345962939,1734569443454,-500.0,0.00024931,6]
[345962941,1734569443463,-278.95154298,0.00024931,6]
[345962960,1734569443654,-500.0,0.00024931,6]
[345962963,1734569443663,-500.0,0.00024931,6]
[345962966,1734569443674,-500.0,0.00024931,6]
[345962970,1734569443683,-500.0,0.00024931,6]
[345962972,1734569443695,-500.0,0.00024931,6]
[345962975,1734569443704,-1154.31,0.00024931,6]
[345962979,1734569443714,-500.0,0.00024931,6]
[345962980,1734569443723,-500.0,0.00024931,6]
[345962983,1734569443732,-500.0,0.00024931,6]
[345962984,1734569443741,-500.0,0.00024931,6]
[345962986,1734569443751,-500.0,0.00024931,6]
[345962989,1734569443760,-500.0,0.00024931,6]
[345962990,1734569443769,-500.0,0.00024931,6]
[345962993,1734569443780,-812.42,0.00024931,6]
[345962995,1734569443789,-675.47,0.00024931,6]
[345962997,1734569443799,-861.13,0.00024931,6]
[345962998,1734569443808,-500.0,0.00024931,6]
[345963000,1734569443817,-500.0,0.00024931,6]
[345963003,1734569443827,-500.0,0.00024931,6]
[345963005,1734569443836,-879.21,0.00024931,6]
[345963007,1734569443846,-1241.35,0.00024931,2]
[345963009,1734569443855,-777.01,0.00024931,6]
[345963011,1734569443864,-612.41,0.00024931,6]
[345963013,1734569443874,-500.0,0.00024931,6]
[345963015,1734569443883,-500.0,0.00024931,6]
[345963017,1734569443896,-500.0,0.00024931,6]
[345963019,1734569443906,-789.39,0.00024931,6]
[345963021,1734569443915,-1424.62,0.00024931,2]
[345963023,1734569443924,-500.0,0.00024931,6]
[345963025,1734569443933,-722.99,0.00024931,6]
[345963027,1734569443943,-720.31,0.00024931,6]
[345963029,1734569443952,-2020.32,0.00024931,2]
[345963031,1734569443962,-500.0,0.00024931,6]
[345963033,1734569443971,-744.92,0.00024931,6]
[345963035,1734569443981,-500.0,0.00024931,6]
[345963037,1734569443990,-500.0,0.00024931,6]
[345963039,1734569444000,-500.0,0.00024931,6]
[345963041,1734569444010,-3029.39,0.00024931,6]
[345963043,1734569444019,-500.0,0.00024931,6]
[345963045,1734569444029,-500.0,0.00024931,6]
[345963047,1734569444039,-7982.21,0.00024931,6]
[345963049,1734569444048,-420.98142771,0.00024931,6]
[345963051,1734569444058,-500.0,0.00024931,6]
[345963053,1734569444068,-500.0,0.00024931,6]
[345963055,1734569444077,-500.0,0.00024931,6]
[345963057,1734569444086,-3471.45,0.00024931,6]
[345963059,1734569444096,-500.0,0.00024931,6]
[345963061,1734569444105,-4804.28,0.00024931,6]
[345963062,1734569444115,-918.69,0.00024931,6]
[345963064,1734569444124,-2482.15,0.00024931,6]
[345963066,1734569444133,-500.0,0.00024931,6]
[345963068,1734569444147,-7468.15,0.00024931,6]
[345963070,1734569444155,-500.0,0.00024931,6]
[345963072,1734569444164,-500.0,0.00024931,6]
[345963074,1734569444174,-3772.56,0.00024931,6]
[345963076,1734569444187,-1200.64,0.00024931,6]
[345963078,1734569444196,-500.0,0.00024931,6]
[345963080,1734569444205,-1357.13,0.00024931,6]
[345963082,1734569444215,-500.0,0.00024931,6]
[345963084,1734569444224,-500.0,0.00024931,6]
[345963087,1734569444234,-6827.72,0.00024931,6]
[345963089,1734569444243,-500.0,0.00024931,6]
[345963091,1734569444253,-3337.14,0.00024931,2]
[345963093,1734569444262,-500.0,0.00024931,6]
[345963095,1734569444272,-500.0,0.00024931,6]
[345963097,1734569444282,-1898.2,0.00024931,6]
[345963099,1734569444292,-500.0,0.00024931,6]
[345963101,1734569444302,-500.0,0.00024931,6]
[345963103,1734569444311,-253.10439918,0.00024931,6]
[345963189,1734570281406,163.887468,0.00013973,2]
[345963240,1734570631979,-785.81079179,0.00019744,2]
[345963248,1734570632042,-3571.38812147,0.00019744,2]
[345963250,1734570632052,-500.58218895,0.00019943,2]
[345963251,1734570632061,-163.887468,0.00020447,2]
[345963254,1734570632071,-250.0,0.00021217,2]